Cogmind - Beta 11 @@@ ROGUE MODE // 2022.04.18 @ 23:32:25 Player: RNGesus Result: Destroyed by D-53 Grenadier with Mini Grenade Launcher Performance ------------- Evolutions (0) 0 Regions Visited (2) 400 Robots Destroyed (21) 105 Value Destroyed (196) 196 Prototype IDs (1) 20 Alien Tech Used (0) 0 Bonus (-1748) -1748 TOTAL SCORE: -1027 Bonus ------- Friendly Fire -1748 Cogmind --------- Core Integrity 0/250 Matter 178/300 Energy 84/100 System Corruption 0% Temperature Cool (0) Movement Core (50) Location -10/Mines Parts ------- > --- POWER (1) -------- (None) > --- PROPULSION (2) --- (None) > --- UTILITY (2) ------ (None) > --- WEAPON (2) ------- Light Assault Rifle > --- INVENTORY (5) ---- Splice Drone Bay (6/6) Assault Rifle YI-UF0's Doublenader Plasma Cutter Peak State ------------ > --- POWER ------------ Ion Engine > --- PROPULSION ------- Light Treads Light Treads > --- UTILITY ---------- Large Storage Unit Splice Drone Bay > --- WEAPON ----------- Assault Rifle Plasma Cutter > --- INVENTORY -------- Light Ion Engine Improved Deuterium Engine YI-UF0's Bottomless Matter Pit Seismic Detector Assault Rifle Assault Rifle Light Assault Rifle Light Assault Rifle Light Assault Rifle Grenade Launcher Grenade Launcher Grenade Launcher YI-UF0's Doublenader Mace Mining Claw [Rating: 17] Favorites ----------- Power Ion Engine Engine Ion Engine Propulsion Light Treads Treads Light Treads Utility Large Storage Unit Device Seismic Detector Storage Large Storage Unit Weapon Assault Rifle Ballistic Gun Assault Rifle Launcher Grenade Launcher Special Weapon Plasma Cutter Build | -11 -10 -10 ------- Run | Scr Mat Min Slots Evolved . | . . . Power . | . . . Propulsion . | . . . Utility . | . . . Weapon . | . . . Parts Attached 21 | 6 3 12 Power 2 | 1 . 1 Engine 2 | 1 . 1 Core . | . . . Reactor . | . . . Propulsion 2 | 2 . . Treads 2 | 2 . . Leg . | . . . Wheel . | . . . Hover . | . . . Flight . | . . . Utility 4 | 1 1 2 Device 2 | . . 2 Storage 2 | 1 1 . Processor . | . . . Hackware . | . . . Protection . | . . . Artifact . | . . . Weapon 13 | 2 2 9 Energy Gun . | . . . Energy Cannon . | . . . Ballistic Gun 8 | 2 2 4 Ballistic Cannon . | . . . Launcher 4 | . . 4 Special Weapon 1 | . . 1 Impact Weapon . | . . . Slashing Weapon . | . . . Piercing Weapon . | . . . Special Melee Weapon . | . . . Unidentified Prototypes 1 | . . 1 Parts Lost 9 | . . 9 Power 2 | . . 2 Propulsion 2 | . . 2 Utility 1 | . . 1 Weapon 4 | . . 4 Highest Loss Streak 9 | . . 9 To Critical Strikes . | . . . Average Slot Usage (%) 90 | . 85 98 Engine 14 | . 14 14 Treads 27 | . 28 26 Device 5 | . . 13 Storage 13 | . 14 13 Ballistic Gun 26 | . 28 24 Naked Turns 1 | . . 1 Heaviest Build 37 | 13 34 37 Greatest Support 40 | 40 40 40 Greatest Overweight (x) 2 | 2 . 1 Average Overweight (x) . | . . . Largest Inventory Capacity 15 | 8 15 15 Average Capacity 11 | 6 10 14 Most Carried 15 | 2 13 15 Average Carried 10 | 1 8 14 Final Capacity 15 | 8 15 5 Final Carried 13 | 2 13 4 Class Distribution -------------------- 100% | Mutant Dominant Class ---------------- Mutant | -10/Materials Mutant | -10/Mines Resources | -11 -10 -10 ----------- Run | Scr Mat Min Matter Collected 596 | 215 257 124 Remotely . | . . . Salvage Created 631 | . 376 255 Parts 52 | . 35 17 Haulers Intercepted 1 | . 1 . Recyclers Shooed 1 | . . 1 Parts Field Recycled . | . . . Retrieved Matter . | . . . Parts Self-Destructed . | . . . Prevented . | . . . Kills | -11 -10 -10 ------- Run | Scr Mat Min Combat Hostiles Destroyed 26 | . 10 16 Guns 11 | . 10 1 AOE 15 | . . 15 Classes Destroyed 6 | . 5 1 Worker 4 | . 3 1 Hauler 1 | . 1 . Recycler 2 | . 1 1 Swarmer 11 | . 8 3 Grunt 2 | . 2 . Assembled 13 | . . 13 Best Kill Streak 13 | . 3 13 Combat Bots Only 13 | . 3 13 Max Kills in Single Turn 4 | . 1 4 Gunslinging . | . . . Exploded 4 | . . 4 Melee . | . . . Uniques/NPCs Destroyed 1 | . . 1 YI-UF0 (-10/Mines) Combat | -11 -10 -10 -------- Run | Scr Mat Min Damage Taken 1161 | . 362 799 Core 263 | . 55 208 Absorbed by Shields . | . . . Core Remaining (%) 100 | 100 . . Volleys Fired 85 | . 39 46 Largest 2 | . 2 2 Hottest 40 | . 40 40 Shots Fired 128 | . 78 50 Gun 86 | . 78 8 Cannon . | . . . Launcher 13 | . . 13 Special 29 | . . 29 Kinetic 86 | . 78 8 Thermal 29 | . . 29 Explosive 13 | . . 13 Electromagnetic . | . . . Robot Hit Streak 11 | . 11 4 Robot Miss Streak 3 | . 3 3 Penetration Max . | . . . Secondary Targets 1 | . 1 . Max Gunslinging Chain 1 | . 1 . Shots Hit Robots 69 | . 42 27 Core Hits 65 | . 22 43 Critical Kills . | . . . Critical Parts Destroyed 1 | . 1 . Critical Strikes 1 | . 1 . Destroy 1 | . 1 . Melee Attacks . | . . . Impact . | . . . Slashing . | . . . Piercing . | . . . Sneak Attacks . | . . . Combat Hostiles . | . . . Follow-up Attacks . | . . . Damage Inflicted 1793 | . 497 1296 Guns 560 | . 497 63 Cannons . | . . . Explosions 1037 | . . 1037 Melee . | . . . Ramming . | . . . Kinetic 560 | . 497 63 Thermal 196 | . . 196 Explosive 1037 | . . 1037 Electromagnetic . | . . . Impact . | . . . Slashing . | . . . Piercing . | . . . Highest Corruption . | . . . Average Corruption . | . . . Corruption Purged . | . . . Corruption Blocked . | . . . Overload Shots . | . . . Overflow Damage 9 | . . 9 Projectiles 7 | . . 7 Explosions 2 | . . 2 Melee . | . . . Knockbacks . | . . . Impact . | . . . Kinetic . | . . . Secondary . | . . . Self-Inflicted Damage 82 | . . 82 Shots 5 | . . 5 Rammed . | . . . Targets Rammed . | . . . Kicked . | . . . Crushed . | . . . Highest Temperature 15 | . 6 15 Average Temperature 8 | . 6 10 Received Heat Transfer 130 | . 90 40 Siege Activations . | . . . Robots Corrupted . | . . . Combat Hostiles . | . . . Parts Fried . | . . . Impact Corruptions . | . . . Robots Melted . | . . . Combat Hostiles . | . . . Parts Melted . | . . . Heat Transferred 666 | . . 666 Parts Sabotaged . | . . . Parts Stolen . | . . . Parts Stripped . | . . . Power Chain Reactions . | . . . Missiles Intercepted . | . . . Alert | -11 -10 -10 ------- Run | Scr Mat Min Peak Influence 200 | . 200 140 Initial 64 | . . 64 Average 58 | . 60 61 Maximum Alert Level 1 | . 1 . Low Security (%) 98 | 100 97 100 Level 1 1 | . 2 . Level 2 . | . . . Level 3 . | . . . Level 4 . | . . . Level 5 . | . . . High Security . | . . . Max Security . | . . . Squads Dispatched 1 | . 1 . Investigation . | . . . Extermination . | . . . Reinforcement 1 | . 1 . Assault . | . . . Garrison . | . . . Intercept . | . . . Searches Triggered . | . . . Construction Impeded . | . . . Haulers Reinforced . | . . . Active Scanning Responses . | . . . Cargo Convoy Interrupts . | . . . Stealth | -11 -10 -10 --------- Run | Scr Mat Min Distress Signals . | . . . Communications Jammed . | . . . Distress Signals . | . . . Times Spotted 65 | . 42 23 Peak Tracking Total 12 | . 7 12 Tactical Retreats 8 | . 8 . Traps | -11 -10 -10 ------- Run | Scr Mat Min Traps Triggered . | . . . Indirectly . | . . . Trap Hack Attempts . | . . . Triggered . | . . . Disarmed . | . . . Reprogrammed . | . . . Reused . | . . . Traps Extracted . | . . . Installed . | . . . Triggered . | . . . Machines | -11 -10 -10 ---------- Run | Scr Mat Min Machines Disabled . | . . . Max in Single Turn . | . . . Machines Sabotaged . | . . . Garrisons Compromised . | . . . Overloaded Fab Kills . | . . . Hacking | -11 -10 -10 --------- Run | Scr Mat Min Machines Accessed 1 | . . 1 Terminals . | . . . Fabricators . | . . . Repair Stations . | . . . Recycling Units . | . . . Scanalyzers . | . . . Garrison Access . | . . . Total Hacks 1 | . . 1 Successful 1 | . . 1 Failed . | . . . Catastrophic . | . . . Database Lockouts . | . . . Manual . | . . . Terminals . | . . . Fabricators . | . . . Repair Stations . | . . . Recycling Units . | . . . Scanalyzers . | . . . Garrison Access . | . . . Terminal Hacks 1 | . . 1 Open Door 1 | . . 1 Fabricator Hacks . | . . . Repair Station Hacks . | . . . Recycling Unit Hacks . | . . . Scanalyzer . | . . . Garrison Access Hacks . | . . . Unauthorized Hacks . | . . . Terminals . | . . . Fabricators . | . . . Repair Stations . | . . . Recycling Units . | . . . Scanalyzers . | . . . Garrison Access . | . . . Data Cores Recovered . | . . . Used . | . . . Hacking Detections . | . . . Full Trace Events . | . . . Feedback Events . | . . . Feedback Blocked . | . . . Robot Schematics Acquired . | . . . Robots Built . | . . . Authchips . | . . . Time . | . . . Total Robot Build Rating . | . . . Part Schematics Acquired . | . . . Parts Built . | . . . Authchips . | . . . Time . | . . . Total Part Build Rating . | . . . Parts Repaired . | . . . Time . | . . . Parts Recycled . | . . . Recycled Matter . | . . . Retrieved Matter . | . . . Retrieved Components . | . . . Parts Scanalyzed . | . . . Part Schematics Acquired . | . . . Parts Damaged . | . . . Bothacking | -11 -10 -10 ------------ Run | Scr Mat Min Used RIF Installer . | . . . Robots Hacked . | . . . Non-combat . | . . . Combat . | . . . Robot Hacks Applied . | . . . Relay Couplers Released . | . . . Fabnet Peak Effective % . | . . . Robots Rewired . | . . . Allies Hacked . | . . . Hacks Repelled . | . . . Allies | -11 -10 -10 -------- Run | Scr Mat Min Total Allies . | . . . Largest Group . | . . . Highest-Rated Group . | . . . Highest-Rated Ally . | . . . Total Orders . | . . . Ally Attacks . | . . . Total Damage . | . . . Kills . | . . . Allies Corrupted . | . . . Allies Melted . | . . . Intel | -11 -10 -10 ------- Run | Scr Mat Min Robot Analysis Total . | . . . Derelict Logs Recovered 1 | . . 1 Drone Launches . | . . . Drone Recoveries . | . . . Exploration | -11 -10 -10 ------------- Run | Scr Mat Min Turns Passed 2591 | 88 1506 997 Spaces Moved 1428 | 56 844 528 Core 19 | 15 . 4 Treads 1409 | 41 844 524 Legs . | . . . Wheels . | . . . Hover . | . . . Flight . | . . . Fastest Speed 50 | 50 160 50 Average Speed 159 | 140 160 160 Slowest Speed 240 | 160 160 240 Overloaded Moves . | . . . Propulsion Burnouts . | . . . Robots Hopped . | . . . Cave-ins Triggered . | . . . Exploration Rate (%) 62 | 4 94 88 Regions Visited 2 Branch Regions 1 Pre-discovered Areas 2 | . . 2 Known Exits Taken . | . . . Unknown Exits Taken 2 | 1 1 . Scrap Searched 1 | . . 1 Spaces Dug 3 | . . 3 Terrain Destroyed 54 | . . 54 Melee . | . . . Projectile . | . . . AOE 54 | . . 54 Terrain Rammed . | . . . Walls Destroyed . | . . . Machines Disabled . | . . . Actions | -11 -10 -10 --------- Run | Scr Mat Min Total 1592 | 63 930 599 Wait 25 | . 22 3 Move 1426 | 55 843 528 Hop . | . . . Pick Up 23 | 2 15 6 Fast Attach 7 | 6 1 . Attach 5 | . . 5 Detach 1 | . 1 . Swap 9 | . 2 7 Drop 11 | . 7 4 Fire 85 | . 39 46 Melee . | . . . Ram . | . . . Kick . | . . . Crush . | . . . Escape Stasis . | . . . Rewire . | . . . Trap . | . . . Miscellaneous . | . . . Route ------- -11/Scrapyard -10/Materials (discovered 5 exits: [*Mat x3] / *Min x2) -10/Mines (discovered 2 exits: [*Mat x2]) History --------- Turn | Location | Event 42 | -11/Scrapyard | Discovered new exit (range 15) 89 | -11/Scrapyard | Entered Materials 200 | -10/Materials | Discovered new exit (range 7) 301 | -10/Materials | Build established: Mutant 338 | -10/Materials | Discovered new exit (range 3) 472 | -10/Materials | Discovered new exit (range 15) 680 | -10/Materials | Discovered new exit (range 15) 1128 | -10/Materials | Discovered new exit (range 15) 1595 | -10/Materials | Entered Mines 1612 | -10/Mines | Found the Drone Emporium 1619 | -10/Mines | Found Prototype Device 1624 | -10/Mines | Identified Splice Drone Bay 1640 | -10/Mines | YI-UF0 nonchalantly dropped a Grenade Launcher on the ground 1758 | -10/Mines | Destroyed YI-UF0 1763 | -10/Mines | Found Prototype Launcher 1774 | -10/Mines | Found Prototype Storage 2044 | -10/Mines | Discovered new exit (range 10) 2060 | -10/Mines | Found a hidden stash of uninstalled traps 2128 | -10/Mines | Discovered new exit (range 8) 2429 | -10/Mines | Learned location of Storage (-7) 2539 | -10/Mines | Assembled infested the area 2584 | -10/Mines | Core integrity fell below 50% 2592 | -10/Mines | Core integrity fell below 20% 2592 | -10/Mines | Destroyed by D-53 Grenadier with Mini Grenade Launcher Last Messages --------------- 02574_ Grenade Launcher destroyed. 02576_ as-56434 destroyed. 02577_ D-53 Grenadier unfolds itself. 02578_ as-78389 destroyed. 02584_ Knocked back. 02585_ The unstable cave ceiling collapses. 02585_ as-86633 destroyed. 02585_ Assault Rifle destroyed. 02586_ Dropped Lrg. Storage Unit. 02587_ Dropped Lgt. Assault Rifle. 02587_ as-98174 destroyed. 02588_ U-05 Engineer lays Concrete. 02588_ Acquired Prototype Launcher. 02589_ U-05 Engineer lays Concrete. 02589_ as-75138 destroyed. 02590_ Lgt. Ion Engine destroyed. 02590_ Assault Rifle destroyed. 02590_ Seismic Detector destroyed. 02590_ U-05 Engineer builds a Wall. 02590_ U-05 Engineer lays Concrete. Map ----- +----------------------------------------------------+ | ???????# #????????##?????## & | | ???????## ##???????# ###???## ## # | | ????????# ####????# ##???##### # | | ????????## ##???# #####???# # | | ?????????## ##??## ##??# # | | ?????????## ###?## ##?# | | ????????## ##?##### #?### | | ????????# ##????## #???? | | ????????# ##????## #???# | | ????????# ## #?????# ##??# | | ????????# #### #?????# #### | | ????????#####??# ##?????## ## | | ???????????????## ##???????# | | ????????????????# ###????????# | | ????????????????# ########???## | | ????????######??# #????# # | | ???????## ########### #????# ## | | ???????# ###????# #????# #? | | ???????# ###??# #????## #? | | ???????# ## #### #?????# #? | | ???????## ## ![#?????# ## | | ????????### ###%#?????# ## | | ???????## u ##?# #?????# # | | ???????# [ ####??# #??#### | | ???????## !* ##???# #?## | | ???????# @! #???# ### | | ??????# #??# | | ??????# u#### | | ??????# # #??## " | | ??????# d % #???### " | | ??????## #?????## " | | ???????# d # #??????# | | ??????# # ### ??????# | | ??????# ??????#### | | ??????# ?????????# | | ??????# ## ????????## | | ??????## #?# #??????# | | ???????## #???#####?????## | | ????????# ?????????????# | | ???????? % ????????????# | | ??????? ????????????# | | ?????? ????????#### | | ?????? ????# | | ????? ????# | | ??????? ### ## ?????###### | | ??????????#???####??????????????## | | ?????????????????????????????????## | | ??????????????????????????????????# | | ??????????????????????????????????# | | ??????????????????????????????????# | +----------------------------------------------------+ Best States ------------- Heat Dissipation 25 Energy Generation 10 Energy Capacity 250 Matter Stores 300 Matter Capacity 300 Sight Range 16 Terrain Scan Density 10 Evasion (%) 40 Recoil Reduction 2 Item Schematics ----------------- None Robot Schematics ------------------ None Fabricated ------------ Nothing Alien Tech Used ----------------- None Achievements -------------- None Challenges ------------ None Game ------ Seed CooledNeutrinoSuperbattery Manual? 0 Play Time 00:11:53 Cumulative 341.3 hours Start 2022.04.18 @ 23:08:38 End 2022.04.18 @ 23:32:25 Sessions 1 Manual Loads 0 Difficulty Rogue Special Mode None Game No. 505 Rogue 505 Adventurer 0 Explorer 0 Win Type - Total 6 Types 4/0/1/1/0/0/0/0/0 Lore% 81 Gallery% 84 Achievement% 66 Wizard Run 0 Options --------- ASCII 0 Keyboard 1 Movement Numpad Keybinds 0 Fullscreen 2 Font 24/Smallcaps Map View 76x50 Tactical HUD 1 Map Filters NONE Filters NONE Steam 1 RUN: bb9b71a2-2ce3-4aeb-9f70-ae21da040c6b